Cogmind - Beta 15 @@@ ROGUE MODE // 2025.09.23 @ 17:26:27 Player: kiul Result: Destroyed by Y-45 Defender with Beam Rifle Performance ------------- Evolutions (1) 500 Regions Visited (2) 400 Robots Destroyed (20) 100 Value Destroyed (589) 589 Prototype IDs (0) 0 Alien Tech Used (0) 0 Bonus (0) 0 TOTAL SCORE: 1589 Bonus ------- None Cogmind --------- Core Integrity 0/400 Matter 289/300 Energy 72/100 System Corruption 1% Temperature Cool (9) Movement Walking (260) Ox2 Location -9/Materials Parts ------- > --- POWER (1) -------- (None) > --- PROPULSION (3) --- Aluminum Leg > --- UTILITY (3) ------ Improved Heat Sink Small Storage Unit Large Storage Unit > --- WEAPON (2) ------- (None) > --- INVENTORY (15) --- Improved Heat Sink Hacking Suite Hacking Suite Hacking Suite Shock Rifle Datajack Peak State ------------ > --- POWER ------------ Light Ion Engine > --- PROPULSION ------- Titanium Leg Titanium Leg Titanium Leg > --- UTILITY ---------- Large Storage Unit Hardlight Generator Hacking Suite > --- WEAPON ----------- Shock Rifle Shock Rifle > --- INVENTORY -------- Light Ion Engine Light Nuclear Core Improved Heat Sink Improved Heat Sink Small Storage Unit Hardlight Generator Hacking Suite Hacking Suite Hacking Suite Heavy EM Pulse Gun Shock Rifle Shock Rifle Datajack [Rating: 26] Favorites ----------- Power Light Ion Engine Engine Light Ion Engine Propulsion Aluminum Leg Leg Aluminum Leg Utility Large Storage Unit Device Hardlight Generator Storage Large Storage Unit Hackware Hacking Suite Weapon Light Assault Rifle Energy Gun Shock Rifle Ballistic Gun Light Assault Rifle Launcher Grenade Launcher Build | -11 -10 -9 ------- Run | Yrd Mat Mat Slots Evolved 2 | . . 2 Power . | . . . Propulsion 1 | . . 1 Utility 1 | . . 1 Weapon . | . . . Parts Attached 29 | 6 8 15 Power 5 | 1 2 2 Engine 5 | 1 2 2 Core . | . . . Reactor . | . . . Propulsion 8 | 2 2 4 Treads . | . . . Leg 8 | 2 2 4 Wheel . | . . . Hover . | . . . Flight . | . . . Utility 6 | 1 1 4 Device 3 | . . 3 Storage 2 | 1 1 . Processor . | . . . Hackware 1 | . . 1 Protection . | . . . Artifact . | . . . Weapon 10 | 2 3 5 Energy Gun 7 | . 2 5 Energy Cannon . | . . . Ballistic Gun 2 | 2 . . Ballistic Cannon . | . . . Launcher 1 | . 1 . Special Weapon . | . . . Impact Weapon . | . . . Slashing Weapon . | . . . Piercing Weapon . | . . . Special Melee Weapon . | . . . Unidentified Prototypes . | . . . Parts Lost 16 | . 4 12 Power 3 | . 1 2 Propulsion 4 | . 1 3 Utility 3 | . . 3 Weapon 6 | . 2 4 Highest Loss Streak 6 | . 2 6 To Critical Strikes . | . . . Average Backups 7 | 1 6 10 Power 1 | 1 2 1 Propulsion . | . 1 . Utility 2 | . 1 5 Weapon 1 | . 1 2 Tool/Special . | . . . Unused Backups 9 | . . 9 Power 1 | . . 1 Propulsion 1 | . . 1 Utility 5 | . . 5 Weapon 1 | . . 1 Tool/Special 1 | . . 1 Average Slot Usage (%) 80 | . 80 80 Engine 11 | . 14 8 Leg 28 | . 26 32 Device 2 | . . 5 Storage 13 | . 14 13 Hackware 1 | . . 2 Energy Gun 8 | . 1 17 Ballistic Gun 13 | . 22 . Launcher 1 | . 1 . Peak Build Rating 26 | 6 10 26 Average Rating 10 | 4 6 19 On Entrance 5 | . 6 10 Naked Turns . | . . . Heaviest Build 34 | 10 31 34 Greatest Support 51 | 20 20 51 Greatest Overweight (x) 3 | 3 2 2 Average Overweight (x) . | . . . Largest Inventory Capacity 15 | 8 15 15 Average Capacity 14 | 7 14 15 Most Carried 15 | 5 14 15 Average Carried 7 | 1 6 10 Final Capacity 15 | 8 15 15 Final Carried 14 | 1 14 6 Class Distribution -------------------- 100% | Mutant Dominant Class ---------------- Mutant | -10/Materials Mutant | -9/Materials Resources | -11 -10 -9 ----------- Run | Yrd Mat Mat Matter Collected 557 | 141 280 136 Remotely . | . . . Salvage Created 596 | . 351 245 Parts 35 | . 22 13 Haulers Intercepted . | . . . Recyclers Shooed 2 | . 1 1 Parts Field Recycled . | . . . Retrieved Matter . | . . . Parts Self-Destructed . | . . . Prevented . | . . . Kills | -11 -10 -9 ------- Run | Yrd Mat Mat Combat Hostiles Destroyed 19 | . 12 7 Melee 1 | . . 1 Guns 8 | . 8 . AOE 10 | . 4 6 Classes Destroyed 5 | . 3 2 Worker 1 | . 1 . Swarmer 5 | . 5 . Grunt 12 | . 7 5 Brawler 1 | . . 1 Sentry 1 | . . 1 Best Kill Streak 6 | . 4 6 Combat Bots Only 6 | . 4 6 Max Kills in Single Turn 3 | . 1 3 Gunslinging . | . . . Exploded 3 | . 1 3 Melee 1 | . . 1 Uniques/NPCs Destroyed . | . . . Combat | -11 -10 -9 -------- Run | Yrd Mat Mat Hostile Shots Fired 234 | . 84 150 Missed 76 | . 12 64 Hits 158 | . 72 86 Melee 1 | . . 1 Projectile 157 | . 72 85 AOE 2 | . . 2 Critical Strikes 1 | . . 1 Damage Taken 2112 | . 746 1366 Core 590 | . 181 409 Absorbed by Shields . | . . . Core Remaining (%) 63 | 100 27 . Volleys Fired 66 | . 56 10 Largest 2 | . 2 2 Hottest 100 | . 50 100 Shots Fired 119 | . 104 15 Gun 113 | . 98 15 Cannon . | . . . Launcher 6 | . 6 . Special . | . . . Kinetic 98 | . 98 . Thermal . | . . . Explosive 6 | . 6 . Electromagnetic 15 | . . 15 Robot Hit Streak 8 | . 8 8 Robot Miss Streak 5 | . 5 2 Penetration Max . | . . . Secondary Targets 3 | . 3 . Max Gunslinging Chain 1 | . 1 . Shots Hit Robots 71 | . 59 12 Core Hits 39 | . 28 11 Critical Kills . | . . . Critical Parts Destroyed . | . . . Critical Strikes . | . . . Melee Attacks . | . . . Impact . | . . . Slashing . | . . . Piercing . | . . . Sneak Attacks . | . . . Combat Hostiles . | . . . Follow-up Attacks . | . . . Damage Inflicted 1326 | . 788 538 Guns 622 | . 444 178 Cannons . | . . . Explosions 664 | . 316 348 Melee . | . . . Ramming 40 | . 28 12 Kinetic 444 | . 444 . Thermal 348 | . . 348 Explosive 316 | . 316 . Electromagnetic 178 | . . 178 Impact . | . . . Slashing . | . . . Piercing . | . . . Highest Corruption 1 | . . 1 Average Corruption 1 | . . 1 Corruption Purged . | . . . Corruption Blocked . | . . . Effects 1 | . . 1 Message Errors 1 | . . 1 Overload Shots . | . . . Overflow Damage 33 | . 19 14 Projectiles . | . . . Explosions 33 | . 19 14 Melee . | . . . Knockbacks . | . . . Impact . | . . . Kinetic . | . . . Secondary . | . . . Self-Inflicted Damage 163 | . 42 121 Shots 5 | . 2 3 Rammed . | . . . Targets Rammed 11 | . 7 4 Kicked 11 | . 7 4 Crushed . | . . . Highest Temperature 42 | . 38 42 Average Temperature 12 | . 10 14 Received Heat Transfer 747 | . 204 543 Siege Activations . | . . . Martial Activations . | . . . Shielding Activations . | . . . Robots Disrupted . | . . . Combat Hostiles . | . . . Robots Corrupted . | . . . Combat Hostiles . | . . . Parts Fried . | . . . Impact Corruptions . | . . . Robots Melted . | . . . Combat Hostiles . | . . . Parts Melted . | . . . Heat Transferred 400 | . . 400 Parts Sabotaged . | . . . Parts Stolen . | . . . Parts Stripped . | . . . Power Chain Reactions 3 | . . 3 Alert | -11 -10 -9 ------- Run | Yrd Mat Mat Maximum Alert Level 1 | . 1 . Low Security (%) 94 | 100 90 100 Level 1 5 | . 9 . Level 2 . | . . . Level 3 . | . . . Level 4 . | . . . Level 5 . | . . . High Security . | . . . Max Security . | . . . Peak Influence 210 | . 210 143 Initial 81 | . . 81 Average 74 | . 101 45 Influence Increases 691 | . 428 263 Destroy 0b10 Robot/C 380 | . 240 140 Destroy 0b10 Robot/NC 5 | . 5 . Destroy Leader 100 | . 50 50 Disable Machine 15 | . 15 . Destroy Structure 41 | . 28 13 Lose Combat Pursuer 150 | . 90 60 Influence Decreases 588 | . 234 354 Entered New Map 113 | . . 113 Time Decay 335 | . 194 141 Lost Part 140 | . 40 100 Squads Dispatched 4 | . 1 3 Investigation 1 | . . 1 Extermination . | . . . Reinforcement 3 | . 1 2 Assault . | . . . Garrison . | . . . Intercept . | . . . Searches Triggered . | . . . Construction Impeded . | . . . Haulers Reinforced . | . . . Active Scanning Responses . | . . . Cargo Convoy Interrupts . | . . . Stealth | -11 -10 -9 --------- Run | Yrd Mat Mat Distress Signals 6 | . 4 2 Communications Jammed . | . . . Distress Signals . | . . . Times Spotted 47 | . 26 21 Peak Tracking Total 10 | . 5 10 Tactical Retreats 6 | . 5 1 Traps | -11 -10 -9 ------- Run | Yrd Mat Mat Traps Triggered 1 | . . 1 Indirectly . | . . . Trap Hack Attempts . | . . . Triggered . | . . . Disarmed . | . . . Reprogrammed . | . . . Reused . | . . . Traps Extracted . | . . . Installed . | . . . Triggered . | . . . Machines | -11 -10 -9 ---------- Run | Yrd Mat Mat Machines Disabled 1 | . 1 . Max in Single Turn 1 | . 1 . Machines Repaired . | . . . Machines Dismantled . | . . . Machines Sabotaged . | . . . Overloaded Fab Kills . | . . . Hacking | -11 -10 -9 --------- Run | Yrd Mat Mat Machines Accessed 3 | . 2 1 Terminals 2 | . 2 . Fabricators . | . . . Repair Stations 1 | . . 1 Recycling Units . | . . . Scanalyzers . | . . . Garrison Access . | . . . Total Hacks 5 | . 3 2 Successful 2 | . . 2 Failed 3 | . 3 . Catastrophic 1 | . 1 . Database Lockouts . | . . . Manual . | . . . Terminals 3 | . 3 . Fabricators . | . . . Repair Stations 2 | . . 2 Recycling Units . | . . . Scanalyzers . | . . . Garrison Access . | . . . Terminal Hacks . | . . . Fabricator Hacks . | . . . Repair Station Hacks 2 | . . 2 Scan Component 1 | . . 1 Repair 1 | . . 1 Recycling Unit Hacks . | . . . Scanalyzer . | . . . Garrison Access Hacks . | . . . Unauthorized Hacks . | . . . Terminals . | . . . Fabricators . | . . . Repair Stations . | . . . Recycling Units . | . . . Scanalyzers . | . . . Garrison Access . | . . . Data Cores Recovered . | . . . Used . | . . . Hacking Detections 2 | . 2 . Full Trace Events . | . . . Feedback Events . | . . . Feedback Blocked . | . . . Robot Schematics Acquired . | . . . Robots Built . | . . . Authchips . | . . . Time . | . . . Total Robot Build Rating . | . . . Part Schematics Acquired . | . . . Parts Built . | . . . Authchips . | . . . Time . | . . . Total Part Build Rating . | . . . Parts Repaired . | . . . Time 38 | . . 38 Parts Recycled . | . . . Recycled Matter . | . . . Retrieved Matter . | . . . Retrieved Components . | . . . Parts Scanalyzed . | . . . Part Schematics Acquired . | . . . Parts Damaged . | . . . Bothacking | -11 -10 -9 ------------ Run | Yrd Mat Mat Used RIF Installer . | . . . Robots Hacked . | . . . Non-combat . | . . . Combat . | . . . Robot Hacks Applied . | . . . Relay Couplers Released . | . . . Fabnet Peak Effective % . | . . . Robots Rewired . | . . . Allies Hacked . | . . . Hacks Repelled . | . . . Allies | -11 -10 -9 -------- Run | Yrd Mat Mat Total Allies . | . . . Largest Group . | . . . Highest-Rated Group . | . . . Highest-Rated Ally . | . . . Total Orders . | . . . Ally Attacks . | . . . Total Damage . | . . . Kills . | . . . Allies Corrupted . | . . . Allies Melted . | . . . Intel | -11 -10 -9 ------- Run | Yrd Mat Mat Active Infowar (turns) . | . . . Robot Analysis Total . | . . . Derelict Logs Recovered . | . . . Drone Launches . | . . . Drone Recoveries . | . . . Exploration | -11 -10 -9 ------------- Run | Yrd Mat Mat Turns Passed 975 | 63 554 358 Spaces Moved 443 | 43 193 207 Core 20 | 20 . . Treads . | . . . Legs 423 | 23 193 207 Wheels . | . . . Hover . | . . . Flight . | . . . Fastest Speed 50 | 50 120 123 Average Speed 156 | 118 187 135 Slowest Speed 260 | 200 260 260 Overloaded Moves . | . . . Propulsion Burnouts . | . . . Robots Hopped . | . . . Potential Cave-ins 1 | . 1 . Cave-ins Triggered . | . . . Exploration Rate (%) 18 | 3 29 23 Regions Visited 2 Branch Regions . Pre-discovered Areas . | . . . Known Exits Taken . | . . . Unknown Exits Taken 2 | 1 1 . Scrap Searched . | . . . Spaces Dug . | . . . Terrain Destroyed 53 | . 42 11 Melee . | . . . Projectile . | . . . AOE 53 | . 42 11 Terrain Rammed . | . . . Walls Destroyed . | . . . Machines Disabled . | . . . Actions | -11 -10 -9 --------- Run | Yrd Mat Mat Total 617 | 55 290 272 Wait 21 | . 10 11 Move 441 | 42 192 207 Hop . | . . . Pick Up 30 | 7 13 10 Fast Attach 6 | . 3 3 Attach 17 | 6 2 9 Detach 1 | . 1 . Swap 10 | . 5 5 Drop 14 | . 1 13 Fire 66 | . 56 10 Melee . | . . . Ram . | . . . Kick 11 | . 7 4 Crush . | . . . Escape Stasis . | . . . Rewire . | . . . Trap . | . . . Miscellaneous . | . . . Route ------- -11/Scrapyard -10/Materials -9/Materials (discovered 1 exit: [*Sto]) History --------- Turn | Location | Event 16 | -11/Scrapyard | Discovered new exit (range 15) 64 | -11/Scrapyard | Entered Materials 308 | -10/Materials | Build established: Mutant 312 | -10/Materials | Core integrity fell below 50% 529 | -10/Materials | Discovered new exit (range 15) 618 | -10/Materials | Entered another Materials area 618 | -9/Materials | Evolved 2 slots: Propulsion x1, Utility x1 877 | -9/Materials | Lost 6 parts (1p3u2w) 915 | -9/Materials | Core integrity fell below 50% 964 | -9/Materials | Core integrity fell below 20% 973 | -9/Materials | Discovered new exit (range 9) 976 | -9/Materials | Destroyed by Y-45 Defender with Beam Rifle Last Messages --------------- 00942_ U-05 Engineer builds a Wall. 00946_ U-05 Engineer lays Concrete. 00948_ U-05 Engineer builds a Door. 00950_ W-16 Scout sends out distress signal. 00951_ Acquired Aluminum Leg. 00952_ U-05 Engineer lays Concrete. 00953_ U-05 Engineer builds a Wall. 00954_ O-16 Technician uses terminal to summon reinforcements. 00954_ ALERT: Hostiles spotted, dispatching reinforcements to Terminal M011. 00954_ O-16 Technician locks terminal. 00956_ Titanium Leg destroyed. 00958_ U-05 Engineer builds a Wall. 00962_ U-05 Engineer lays Concrete. 00963_ U-05 Engineer builds a Wall. 00971_ Kicked G-34 Mercenary. 00973_ G-34 Mercenary destroyed. 00973_ EXIT=FOUND 00974_ Acquired 25 matter. 00975_ Titanium Leg destroyed. Map ----- +----------------------------------------------------+ | | | | | | | | | | | | | | | | | | | | | | | | | ?????????????????????????????????????????????????? | | ?????????????????????????????????????????????????? | | ??????????????????????#######????????????????????? | | ??????????????????????# ! #????????????????????? | | ??????????????????????? #????????????????????? | | ??????????????????????? < #????????????????????? | | ??????????????????????? !#????????????????????? | | #####?????????????????? ?????????????????????? | | #??????????????????# #?????????????????????? | | ##?????????????????# #?????????????????????? | | #######??????###???# #?????????????????????? | | !=# ########T##### ###+#######???????????? | | #"+## Ygw ????????? | | =%!%! g o @ ????????? | | "###*[% gg w = ????????? | | ####%[% ####################k#######???????????? | | ##### % "##?????????????????????????????????????? | | ## = #?????????????????????????????????????? | | ## #?????????????????????????????????????? | | ## #?????????????????????????????????????? | | ## #?????????????????????????????????????? | | ## """ =#?????????????????????????????????????? | | ## """"" #?????????????????????????????????????? | | ## """"" #?????????????????????????????????????? | | ## """"" #?????????????????????????????????????? | | ## """ #?????????????????????????????????????? | | ###########?????????????????????????????????????? | | #???????????????????????????????????????????????? | | #???????????????????????????????????????????????? | | #???????????????????????????????????????????????? | | #???????????????????????????????????????????????? | | #???????????????????????????????????????????????? | | #???????????????????????????????????????????????? | | #???????????????????????????????????????????????? | | #???????????????????????????????????????????????? | | #???????????????????????????????????????????????? | | #???????????????????????????????????????????????? | | #?????????? ???????????????????????????????????? | +----------------------------------------------------+ Best States ------------- Heat Dissipation 42 Energy Generation 10 Energy Capacity 250 Matter Stores 300 Matter Capacity 300 Sight Range 16 Terrain Scan Density 10 Evasion (%) 55 Offensive Hacking 10 Item Schematics ----------------- None Robot Schematics ------------------ None Fabricated ------------ Nothing Repaired ---------- Nothing Alien Tech Used ----------------- None Achievements -------------- None Challenges ------------ None Game ------ Seed ExoskeletonEnhancedStripper Manual? 0 Play Time 00:17:00 Cumulative 1.1 hours Start 2025.09.23 @ 17:07:31 End 2025.09.23 @ 17:26:27 Sessions 1 Manual Loads 0 Difficulty Rogue Special Mode None Game No. 3 Rogue 3 Adventurer 0 Explorer 0 Win Type - Total 0 Types 0/0/0/0/0/0/0/0/0/0 Lore% 0 Gallery% 3 Achievement% 3 Wizard Run 0 Options --------- Layout 0 ASCII 0 Keyboard 1 Movement Arrows Keybinds 0 Fullscreen 1 Font 24/Smallcaps Map View 76x50 Zoom Use 0% Tactical HUD 1 Map Filters NONE Filters NONE Steam 1 RUN: 2417392c-3a49-442c-97a9-3d55a045e500